bitfinex/quotes_SOLUSD_20251126
["timestamp","ask_amount","ask_price","bid_price","bid_amount"]
[1764163795575,16.308864,136.35,136.27,62.37615234]
[1764163795784,4.92971577,136.34,136.28,0.28432314]
[1764163796084,4.93008892,136.33,136.27,25.6842906]
[1764163796288,8.80994492,136.34,136.27,18.34591826]
[1764163796489,4.93043246,136.33,136.27,18.34591826]
[1764163796791,25.11880892,136.36,136.28,0.28432314]
[1764163796983,4.93015853,136.35,136.28,0.28432314]
[1764163797183,4.93015853,136.34,136.28,0.28432314]
[1764163797494,4.93015853,136.33,136.28,0.28432314]
[1764163797679,25.11880892,136.36,136.28,0.28432314]
[1764163797876,4.93045266,136.35,136.28,0.28432314]
[1764163798075,4.93045266,136.34,136.28,0.28432314]
[1764163798284,4.93045266,136.33,136.29,25.68053415]
[1764163798484,31.28214824,136.36,136.29,25.68053415]
[1764163798676,4.93070825,136.35,136.29,25.68053415]
[1764163798872,4.93070825,136.34,136.29,25.68053415]
[1764163799187,4.93070825,136.33,136.29,25.68053415]
[1764163799387,0.14216157,136.35,136.29,7.33729547]
[1764163799588,0.14216157,136.35,136.27,18.34566157]
[1764163799589,8.80994492,136.32,136.28,7.33768263]
[1764163799773,4.93093228,136.31,136.28,7.33768263]
[1764163799975,4.93093228,136.3,136.28,7.33768263]
[1764163800174,8.80994492,136.32,136.28,7.33768263]
[1764163800386,16.308864,136.27,136.25,0.2]
[1764163800591,8.80994492,136.3,136.25,0.2]
[1764163800592,4.93333146,136.26,136.25,0.2]
[1764163800800,4.93307089,136.29,136.25,25.8879002]
[1764163801020,25.11880892,136.29,136.25,0.2]
[1764163801175,4.9318709,136.28,136.25,0.2]
[1764163801376,6.16333932,136.31,136.25,7.53910003]
[1764163801595,4.92877312,136.32,136.26,0.28432314]
[1764163801898,4.92877312,136.31,136.25,42.19658788]
[1764163802194,6.16333932,136.34,136.26,0.42648471]
[1764163802496,6.16333932,136.34,136.25,42.19658788]
[1764163802497,13.7386664,136.33,136.27,25.68430321]
[1764163802702,4.92872148,136.32,136.27,25.68430321]
[1764163802878,8.80994492,136.33,136.27,25.68430321]
[1764163803074,4.92821527,136.32,136.27,25.68430321]
[1764163803279,4.92821527,136.31,136.27,25.68430321]
[1764163803501,4.92792222,136.32,136.28,0.28432314]
[1764163803700,4.92739532,136.34,136.28,0.42648471]
[1764163803899,14.97328424,136.38,136.28,0.42648471]
[1764163804082,4.92699202,136.37,136.28,0.42648471]
[1764163804283,4.92699202,136.36,136.3,0.28432314]
[1764163804585,4.92699202,136.35,136.3,0.28432314]
[1764163804790,4.92691422,136.36,136.33,0.28432314]
[1764163805001,6.16333932,136.41,136.32,16.308864]
[1764163805213,8.80994492,136.39,136.32,16.308864]
[1764163805507,4.92611249,136.38,136.32,16.308864]
[1764163805716,25.11880892,136.4,136.32,16.308864]
[1764163805882,4.92622099,136.39,136.32,16.308864]
[1764163806079,4.92622099,136.38,136.32,16.308864]
[1764163806293,25.11880892,136.4,136.33,25.67299933]
[1764163806488,4.9265013,136.39,136.34,0.28432314]
[1764163806682,4.9265013,136.4,136.34,0.28432314]
[1764163806883,4.92550996,136.43,136.34,0.42648471]
[1764163807087,4.92396129,136.45,136.4,16.308864]
[1764163807399,4.91814314,136.47,136.41,0.42648471]
[1764163807701,5.01772625,136.48,136.41,6.68982403]
[1764163807903,4.91772625,136.47,136.41,6.54766246]
[1764163808084,0.1,136.48,136.41,6.54766246]
[1764163808297,4.91797086,136.47,136.42,7.33030347]
[1764163808491,4.91797086,136.47,136.41,13.59410969]
[1764163808682,16.408864,136.48,136.41,7.33077037]
[1764163808683,8.80994492,136.45,136.41,7.33077037]
[1764163808880,4.91598365,136.44,136.39,23.74075442]
[1764163809102,31.28214824,136.45,136.38,7.3323941]
[1764163809103,16.308864,136.42,136.38,7.3323941]
[1764163809314,16.308864,136.42,136.36,25.6658951]
[1764163810618,4.91599619,136.41,136.36,25.6658951]
[1764163811606,6.16333932,136.45,136.37,0.28432314]
[1764163811792,13.72491616,136.44,136.37,0.28432314]
[1764163811991,8.80994492,136.44,136.37,0.28432314]
[1764163812198,6.26333932,136.48,136.37,0.42648471]
[1764163812399,6.26333932,136.48,136.41,8.80994492]
[1764163812400,4.91272113,136.47,136.41,8.80994492]
[1764163812612,0.1,136.48,136.44,0.14216157]
[1764163812934,0.1,136.48,136.43,8.95210649]
[1764163812935,0.1,136.48,136.46,0.28432314]
[1764163813629,0.1,136.48,136.45,2.93653415]
[1764163813857,0.1,136.48,136.42,25.65606215]
[1764163813997,8.90994492,136.48,136.42,28.59389036]
[1764163814324,0.1,136.48,136.42,28.59389036]
[1764163815031,0.1,136.48,136.43,0.28432314]
[1764163815400,0.1,136.48,136.43,0.42648471]
[1764163816207,0.1,136.48,136.43,9.23642963]
[1764163816622,0.1,136.48,136.45,0.14216157]
[1764163817621,0.1,136.48,136.45,0.28432314]
[1764163818048,0.1,136.48,136.46,8.90994492]
[1764163818338,0.1,136.48,136.47,0.28432314]
[1764163818539,0.1,136.48,136.47,7.61194093]
[1764163819114,0.1,136.49,136.47,7.7541025]
[1764163819328,0.1,136.49,136.47,7.61194093]
[1764163820448,0.1,136.49,136.47,7.32761779]
[1764163822147,0.1,136.49,136.41,8.80994492]
[1764163822340,0.1,136.49,136.43,2.93718104]
[1764163822522,13.79425715,136.49,136.37,25.66546893]
[1764163822724,25.11880892,136.48,136.41,16.308864]
[1764163823041,4.88543801,136.47,136.37,25.66546893]
[1764163823234,4.88543801,136.47,136.38,22.46181468]
[1764163823434,4.88543801,136.47,136.38,22.03532997]
[1764163823750,8.80994492,136.46,136.37,78.63928856]
[1764163824055,8.80994492,136.46,136.37,84.36737317]
[1764163824246,8.80994492,136.46,136.38,0.42648471]
[1764163824553,16.308864,136.44,136.37,36.66495563]
[1764163825258,16.308864,136.44,136.38,0.28432314]
[1764163825419,16.308864,136.44,136.38,0.42648471]
[1764163826351,16.308864,136.44,136.37,36.66495563]
[1764163826541,16.308864,136.44,136.35,26.40264026]
[1764163826853,13.69681673,136.43,136.36,0.14216157]
[1764163827058,8.80994492,136.43,136.36,0.28432314]
[1764163827554,8.80994492,136.43,136.35,25.66923359]
[1764163827733,8.80994492,136.41,136.35,25.66923359]
[1764163827925,25.11880892,136.41,136.35,25.66923359]
[1764163828129,16.308864,136.41,136.35,25.66923359]
[1764163828448,16.308864,136.41,136.35,7.33406674]
[1764163828645,16.308864,136.41,136.34,7.47661272]
[1764163829026,16.308864,136.41,136.34,7.33445115]
[1764163829228,16.308864,136.41,136.35,0.28432314]
[1764163829750,8.80994492,136.4,136.34,25.67096281]
[1764163829928,16.308864,136.37,136.25,0.2]
[1764163830123,16.308864,136.37,136.29,0.42648471]
[1764163830954,16.308864,136.37,136.3,25.67865003]
[1764163831938,8.80994492,136.36,136.3,25.67865003]
[1764163832140,8.80994492,136.36,136.3,7.33675715]
[1764163832830,8.80994492,136.36,136.29,18.34250101]
[1764163833744,8.80994492,136.36,136.28,7.33783387]
[1764163834040,8.80994492,136.36,136.28,25.68241854]
[1764163835647,4.88825973,136.35,136.28,25.68241854]
[1764163835840,8.80994492,136.36,136.28,25.68241854]
[1764163836733,8.80994492,136.36,136.29,0.28432314]
[1764163836941,16.308864,136.36,136.29,0.42648471]
[1764163837167,16.308864,136.37,136.31,0.14216157]
[1764163837665,16.308864,136.37,136.31,0.42648471]
[1764163838261,16.308864,136.37,136.31,0.28432314]
[1764163838474,16.308864,136.37,136.31,0.42648471]
[1764163838679,16.308864,136.37,136.3,25.67865003]
[1764163839161,16.308864,136.36,136.3,25.67865003]
[1764163839331,25.11880892,136.36,136.3,7.33675715]
[1764163840050,25.11880892,136.36,136.29,7.33715135]
[1764163841658,8.80994492,136.34,136.29,7.33715135]
[1764163842365,16.308864,136.32,136.26,7.3389109]
[1764163842579,16.308864,136.32,136.26,25.68618816]
[1764163842871,16.308864,136.32,136.27,0.28432314]
[1764163843285,16.308864,136.32,136.27,7.33837234]
[1764163844070,16.308864,136.32,136.26,7.33867317]
[1764163844371,16.308864,136.31,136.26,7.33867317]
[1764163844569,16.308864,136.31,136.25,7.53934223]
[1764163844737,8.80994492,136.32,136.25,7.53934223]
[1764163844738,16.308864,136.29,136.25,0.2]
[1764163845349,8.80994492,136.28,136.25,0.2]
[1764163845757,16.308864,136.26,136.25,0.2]
[1764163846347,25.26097049,136.26,136.25,0.2]
[1764163846545,25.11880892,136.26,136.25,0.2]
[1764163850948,29.99494877,136.26,136.25,0.2]
[1764163851377,25.11880892,136.26,136.25,0.2]
[1764163851570,29.99156622,136.26,136.25,0.2]
[1764163852071,37.47263869,136.26,136.25,0.2]
[1764163853972,37.47263869,136.26,136.24,0.2]
[1764163853973,11.23642962,136.25,136.24,0.2]
[1764163854182,25.32465703,136.25,136.24,0.2]
[1764163855279,31.40389403,136.25,136.24,0.2]
[1764163855669,29.40389404,136.25,136.24,0.2]
[1764163855872,36.74334358,136.25,136.24,0.2]
[1764163856678,37.41334358,136.25,136.24,0.2]
[1764163857602,37.39921,136.25,136.24,0.2]
[1764163858084,31.33410658,136.25,136.24,0.2]
[1764163858378,37.39800951,136.25,136.24,0.2]
[1764163858555,13.68270222,136.25,136.24,0.2]
[1764163858754,4.8727573,136.25,136.24,0.2]
[1764163858979,5.5427573,136.27,136.24,0.2]
[1764163859188,16.978864,136.27,136.24,0.2]
[1764163859357,5.51958834,136.26,136.24,0.2]
[1764163859563,25.26097049,136.25,136.24,0.2]
[1764163859867,30.78055883,136.25,136.24,0.2]
[1764163860268,38.40433151,136.25,136.24,0.2]
[1764163860981,0.14216157,136.23,136.22,0.2]
[1764163861171,14.08601797,136.23,136.22,0.2]
[1764163861382,20.82186309,136.23,136.22,0.2]
[1764163862183,14.75601797,136.23,136.22,0.2]
[1764163862355,20.82186309,136.23,136.22,0.2]
[1764163862563,13.65953326,136.23,136.22,0.2]
[1764163862887,29.96839726,136.23,136.22,0.2]
[1764163863978,13.65953326,136.23,136.22,0.2]
[1764163864282,29.96839726,136.23,136.22,0.2]
[1764163864484,28.16239013,136.23,136.22,0.2]
[1764163865155,19.72537838,136.23,136.22,0.2]
[1764163865359,13.65953326,136.23,136.22,0.2]
[1764163866268,27.87806699,136.23,136.22,0.2]
[1764163867064,28.16239013,136.23,136.22,0.2]
[1764163867367,25.26097049,136.21,136.2,0.2]
[1764163867575,13.80169483,136.21,136.2,0.2]
[1764163867762,14.47169483,136.21,136.2,0.2]
[1764163867963,22.58178443,136.21,136.2,0.2]
[1764163868593,29.9233893,136.21,136.2,0.2]
[1764163869087,25.11880892,136.19,136.18,0.2]
[1764163869264,36.05361625,136.19,136.18,0.2]
[1764163869464,21.15845234,136.19,136.18,0.9]
[1764163869965,4.84958834,136.19,136.18,8.2432222]
[1764163870287,4.84958834,136.19,136.18,0.9]
[1764163872087,4.84958834,136.19,136.18,0.2]
[1764163872288,4.84958834,136.19,136.18,0.9]
[1764163873914,4.84958834,136.19,136.18,8.2432222]
[1764163874197,4.84958834,136.19,136.18,0.9]
[1764163874367,10.93480733,136.19,136.18,0.9]
[1764163874569,4.84958834,136.19,136.18,8.2432222]
[1764163874867,4.84958834,136.19,136.18,0.9]
[1764163875393,10.93480733,136.19,136.18,0.9]
[1764163876483,10.93480733,136.19,136.18,0.2]
[1764163876688,27.96367133,136.19,136.18,0.2]
[1764163876884,8.80994492,136.18,136.17,0.2]
[1764163877086,22.48962286,136.18,136.17,0.2]
[1764163877290,14.52169483,136.18,136.16,0.2]
[1764163877485,13.71099666,136.17,136.16,0.2]
[1764163877709,13.71129001,136.17,136.16,0.2]
[1764163877909,29.30015401,136.17,136.16,0.2]
[1764163878797,27.26517355,136.17,136.16,0.89]
[1764163879397,27.26517355,136.17,136.16,0.2]
[1764163881086,36.07511847,136.17,136.16,0.2]
[1764163881794,27.26517355,136.17,136.16,0.2]
[1764163882604,36.79511847,136.17,136.16,0.2]
[1764163884110,8.80994492,136.16,136.15,0.2]
[1764163884327,20.49943125,136.16,136.15,0.2]
[1764163884623,22.52123493,136.16,136.15,0.2]
[1764163885789,29.86553575,136.16,136.15,0.2]
[1764163886101,34.5707543,136.16,136.15,0.2]
[1764163887015,34.5707543,136.16,136.14,0.2]
[1764163887222,29.96839726,136.15,136.14,0.2]
[1764163887515,42.01791663,136.15,136.14,0.2]
[1764163887812,42.09782665,136.15,136.14,0.2]
[1764163888013,46.3479572,136.15,136.13,0.2]
[1764163888224,14.37953326,136.14,136.13,0.2]
[1764163888402,26.5712142,136.14,136.13,0.2]
[1764163888796,38.71879382,136.14,136.13,0.2]
[1764163889114,26.5712142,136.14,136.13,0.2]
[1764163889315,46.06417357,136.14,136.13,0.2]
[1764163890294,46.34849671,136.14,136.13,0.2]
[1764163891020,41.57703114,136.14,136.13,0.2]
[1764163891237,41.57703114,136.14,136.1,0.2]
[1764163891538,9.23642963,136.09,136.08,0.2]
[1764163891826,38.41204208,136.09,136.08,0.2]
[1764163894392,51.19743392,136.07,136.06,0.2]
[1764163894598,43.16440134,136.07,136.06,0.2]
[1764163895390,58.68244617,136.07,136.06,0.2]
[1764163895815,50.51355986,136.07,136.06,0.2]
[1764163896013,58.68612243,136.07,136.06,0.2]
[1764163896995,10.9777859,136.07,136.06,0.69]
[1764163897322,4.84958834,136.07,136.06,12.73951937]
[1764163897488,3.23958834,136.07,136.06,20.08921803]
[1764163897692,3.23958834,136.07,136.06,20.37354117]
[1764163897892,6.12819756,136.11,136.06,26.41394531]
[1764163898089,6.12819756,136.12,136.08,12.04951937]
[1764163898292,18.17771693,136.12,136.06,19.39921803]
[1764163898533,6.12819756,136.12,136.09,12.04951937]
[1764163898719,14.93814248,136.13,136.09,12.04951937]
[1764163899028,18.17771693,136.13,136.07,12.04951937]
[1764163899222,12.04951937,136.08,136.05,0.2]
[1764163899804,12.04951937,136.07,136.05,0.2]
[1764163900121,12.04951937,136.08,136.05,0.2]
[1764163900819,26.98766185,136.09,136.05,0.2]
[1764163901004,20.85946429,136.09,136.05,7.55018896]
[1764163901318,16.308864,136.08,136.05,7.55018896]
[1764163901493,14.93814248,136.11,136.07,12.04951937]
[1764163901700,34.48658093,136.12,136.07,12.04951937]
[1764163902023,18.17771693,136.12,136.07,12.04951937]
[1764163902322,12.04951937,136.11,136.06,12.04951937]
[1764163902623,23.23260804,136.12,136.07,6.92374404]
[1764163902800,16.308864,136.12,136.08,6.92374404]
[1764163902998,6.12819756,136.14,136.11,6.92374404]
[1764163903201,0.72,136.17,136.12,6.92374404]
[1764163903202,6.12819756,136.15,136.12,6.92374404]
[1764163903525,6.12819756,136.15,136.12,14.27019568]
[1764163904024,16.308864,136.14,136.13,6.92374404]
[1764163904243,14.93814248,136.17,136.13,6.92374404]
[1764163905219,16.308864,136.16,136.15,6.92374404]
[1764163905610,16.308864,136.16,136.12,18.36614751]
[1764163905812,16.308864,136.16,136.15,6.92374404]
[1764163906115,16.308864,136.16,136.14,6.92374404]
[1764163906431,16.308864,136.16,136.13,6.92374404]
[1764163907297,16.978864,136.16,136.11,14.27052145]
[1764163908001,16.308864,136.16,136.11,7.34677741]
[1764163908201,16.978864,136.16,136.11,7.34677741]
[1764163908627,16.978864,136.16,136.11,14.27052145]
[1764163908799,23.23260804,136.16,136.11,6.92374404]
[1764163908999,23.23260804,136.14,136.09,6.92374404]
[1764163909204,23.23260804,136.14,136.07,14.27272768]
[1764163909205,8.80994492,136.12,136.07,14.27272768]
[1764163909731,4.9094626,136.11,136.07,14.27272768]
[1764163910107,11.83320664,136.11,136.07,7.34898364]
[1764163910330,16.308864,136.08,136.05,14.4738379]
[1764163910507,16.308864,136.08,136.05,7.55009386]
[1764163911107,23.23260804,136.09,136.05,7.55009386]
[1764163911622,23.23260804,136.09,136.05,0.2]
[1764163911822,4.90893896,136.08,136.05,0.2]
[1764163912044,21.88780296,136.08,136.05,0.2]
[1764163912205,8.80994492,136.06,136.05,0.2]
[1764163912405,20.64262792,136.06,136.05,0.2]
[1764163912712,21.31262792,136.06,136.05,0.2]
[1764163915734,4.90893896,136.06,136.05,0.2]
[1764163916036,21.21780296,136.06,136.05,0.2]
[1764163917029,28.141547,136.06,136.05,0.2]
[1764163918407,21.21780296,136.06,136.05,0.2]
[1764163919930,36.95149192,136.06,136.05,0.2]
[1764163920234,37.62149192,136.06,136.05,0.2]
[1764163921326,45.11335215,136.06,136.05,0.2]
[1764163921528,16.54585053,136.05,136.03,0.2]
[1764163921835,27.08156792,136.04,136.03,0.2]
[1764163922032,27.75156792,136.04,136.03,0.2]
[1764163922416,35.1023471,136.04,136.03,0.2]
[1764163922618,27.60940635,136.04,136.03,0.2]
[1764163922920,13.71888388,136.04,136.03,0.2]
[1764163923118,4.90893896,136.04,136.03,0.2]
[1764163923532,11.832683,136.04,136.03,0.2]
[1764163924529,4.90893896,136.04,136.03,0.2]
[1764163925825,21.21780296,136.04,136.03,0.2]
[1764163928535,16.308864,136.04,136.03,0.2]
[1764163928735,21.23727011,136.04,136.03,0.2]
[1764163929841,37.64095907,136.04,136.03,0.2]
[1764163930009,21.23727011,136.04,136.03,0.2]
[1764163930215,4.92840611,136.04,136.03,0.2]
[1764163930438,21.23727011,136.06,136.03,7.96131956]
[1764163930755,13.73835103,136.05,136.03,0.2]
[1764163931051,4.92840611,136.04,136.03,7.96131956]
[1764163931357,4.92840611,136.05,136.03,7.96131956]
[1764163931516,4.92840611,136.04,136.03,7.96131956]
[1764163931719,21.23727011,136.05,136.04,0.41]
[1764163932219,21.23727011,136.05,136.03,7.55131956]
[1764163932422,16.308864,136.05,136.03,7.96131956]
[1764163932940,7.59374404,136.08,136.04,0.41]
[1764163932941,16.308864,136.07,136.04,0.41]
[1764163933126,4.93133058,136.06,136.03,7.96131956]
[1764163933331,16.308864,136.07,136.03,7.96131956]
[1764163933518,4.93141775,136.06,136.03,7.96131956]
[1764163933847,4.93141775,136.06,136.04,7.33374404]
[1764163933848,4.93118007,136.06,136.04,7.33374404]
[1764163934138,6.92374404,136.08,136.04,0.41]
[1764163934345,4.93118007,136.07,136.04,0.41]
[1764163934563,4.93118007,136.06,136.04,0.41]
[1764163934713,4.93118007,136.07,136.04,0.41]
[1764163934917,4.93118007,136.06,136.04,7.76039788]
[1764163935229,4.93118007,136.07,136.04,7.76039788]
[1764163935428,6.92374404,136.08,136.04,7.76039788]
[1764163935635,4.93157412,136.07,136.03,7.55116682]
[1764163935838,4.93157412,136.07,136.03,7.96116682]
[1764163935839,4.93181183,136.06,136.03,7.96116682]
[1764163936341,4.93181183,136.07,136.03,7.96116682]
[1764163936522,7.64374404,136.08,136.03,7.96116682]
[1764163936723,4.93162629,136.07,136.03,7.55116682]
[1764163936931,7.64374404,136.08,136.04,7.76066324]
[1764163937125,11.85536992,136.07,136.03,7.96111729]
[1764163937336,4.93162588,136.06,136.03,7.96111729]
[1764163937528,4.93162588,136.06,136.03,0.61]
[1764163937931,4.93162588,136.06,136.03,7.96120761]
[1764163938531,4.93162588,136.06,136.04,0.41]
[1764163938744,4.93162588,136.07,136.04,0.41]
[1764163939046,7.64374404,136.08,136.04,7.76034063]
[1764163939246,11.85569566,136.07,136.03,7.55114211]
[1764163939433,11.85569566,136.07,136.03,7.96114211]
[1764163939434,4.93195162,136.06,136.03,7.96114211]
[1764163939634,4.93195162,136.05,136.03,0.2]
[1764163940039,21.38564058,136.04,136.03,0.2]
[1764163940425,14.46189654,136.04,136.03,0.2]
[1764163940630,21.38564058,136.04,136.03,0.2]
[1764163942132,28.73641976,136.04,136.03,0.2]
[1764163942733,27.54025744,136.04,136.03,0.2]
[1764163942933,21.38564058,136.04,136.03,0.2]
[1764163943524,36.97450458,136.04,136.03,0.2]
[1764163943736,21.24081562,136.04,136.03,0.2]
[1764163943932,28.88455966,136.04,136.03,0.2]
[1764163945355,28.16455966,136.04,136.03,0.2]
[1764163945737,16.308864,136.04,136.03,7.96131956]
[1764163946134,16.308864,136.06,136.03,0.2]
[1764163946449,21.24035924,136.05,136.03,0.2]
[1764163946638,16.308864,136.05,136.03,0.2]
[1764163947528,23.23260804,136.05,136.03,0.2]
[1764163947749,16.308864,136.05,136.03,0.2]
[1764163951330,16.308864,136.05,136.03,7.55131956]
[1764163951331,4.94204102,136.04,136.03,7.55131956]
[1764163951843,4.94204102,136.04,136.03,7.96131956]
[1764163952356,4.94204102,136.04,136.03,0.61]
[1764163952556,4.94204102,136.04,136.03,7.96131956]
[1764163953038,4.94204102,136.04,136.03,0.2]
[1764163954431,12.58578506,136.04,136.03,0.2]
[1764163955049,21.39572998,136.04,136.03,0.2]
[1764163955357,27.56042492,136.04,136.03,0.2]
[1764163957254,20.63668088,136.04,136.03,0.2]
[1764163957454,27.56042492,136.04,136.03,0.2]
[1764163957631,11.10673596,136.04,136.03,0.2]
[1764163957829,12.58578506,136.04,136.03,0.2]
[1764163958965,21.39572998,136.04,136.03,0.2]
[1764163959138,27.56042492,136.04,136.03,0.2]
[1764163960758,21.39572998,136.04,136.02,0.1]
[1764163960958,4.94204102,136.03,136.02,0.1]
[1764163961345,21.25090502,136.03,136.02,0.1]
[1764163962559,21.97090502,136.03,136.02,0.1]
[1764163963057,4.94204102,136.03,136.02,0.1]
[1764163964267,5.66204102,136.03,136.02,0.1]
[1764163964458,4.94204102,136.03,136.02,0.1]
[1764163967054,5.66204102,136.03,136.02,0.1]
[1764163967254,4.94204102,136.03,136.02,0.1]
[1764163969058,21.25090502,136.03,136.02,0.1]
[1764163971977,21.97090502,136.03,136.02,0.1]
[1764163972964,34.03904616,136.03,136.02,0.1]
[1764163973267,40.23326242,136.03,136.02,0.1]
[1764163973640,49.04320734,136.03,136.02,0.1]
[1764163974042,42.84899108,136.03,136.02,0.1]
[1764163974243,49.0420858,136.03,136.02,0.1]
[1764163975056,50.20031064,136.03,136.02,0.1]
[1764163975241,49.04032931,136.03,136.02,0.1]
[1764163975450,49.04103195,136.03,136.02,0.1]
[1764163977159,19.94402681,136.03,136.02,0.1]
[1764163977364,4.94204102,136.03,136.02,0.1]
[1764163980980,21.25090502,136.03,136.02,0.51]
[1764163981363,4.94204102,136.03,136.02,0.51]
[1764163982184,4.94204102,136.03,136.02,20.2143243]
[1764163982366,6.19204087,136.07,136.03,0.28432314]
[1764163982572,4.95399044,136.06,136.04,12.06814114]
[1764163982871,4.95399044,136.05,136.04,12.06814114]
[1764163983280,4.95399044,136.05,136.03,12.35246428]
[1764163983489,4.95278173,136.04,136.03,0.69432314]
[1764163983780,6.91204087,136.08,136.03,12.35246428]
[1764163983987,4.95308799,136.07,136.04,12.06814114]
[1764163984185,4.95308799,136.06,136.05,7.63456202]
[1764163984486,6.19204087,136.12,136.06,0.42648471]
[1764163984662,4.95231065,136.11,136.1,12.06814114]
[1764163984863,4.95231065,136.11,136.07,12.47814114]
[1764163985188,4.95231065,136.1,136.08,12.06814114]
[1764163985479,4.95231065,136.09,136.06,0.69432314]
[1764163985668,4.95231065,136.08,136.07,12.78814114]
[1764163985871,4.95231065,136.08,136.06,0.69432314]
[1764163986072,6.91204087,136.11,136.07,0.41]
[1764163986273,4.94922633,136.1,136.07,0.41]
[1764163986502,4.94922633,136.09,136.08,7.34861845]
[1764163987170,4.94922633,136.09,136.07,7.75894522]
[1764163987491,6.88204087,136.12,136.07,7.75894522]
[1764163987674,4.94521706,136.11,136.07,7.75894522]
[1764163987871,4.94521706,136.1,136.07,7.34894522]
[1764163988076,4.94521706,136.09,136.05,7.3497176]
[1764163988274,4.94521706,136.08,136.05,7.7597176]
[1764163988475,4.94521706,136.07,136.04,10.73573731]
[1764163988675,9.4889135,136.06,136.02,0.1]
[1764163988882,9.4889135,136.05,136.02,0.1]
[1764163989177,9.4889135,136.04,136.02,0.1]
[1764163989374,4.94521706,136.03,136.02,0.1]
[1764163992295,35.29772242,136.03,136.02,0.1]
[1764163994376,4.94521706,136.03,136.02,0.1]
[1764163995796,17.67129902,136.03,136.02,0.1]
[1764163997397,26.48124394,136.03,136.02,0.1]
[1764163998693,21.53602688,136.03,136.02,0.1]
[1764163999003,26.47909938,136.03,136.02,0.1]
[1764163999598,17.66915446,136.03,136.02,0.1]
[1764164000686,26.47909938,136.03,136.02,0.1]
[1764164001194,17.66915446,136.03,136.02,0.1]
[1764164002273,4.9430725,136.03,136.02,0.1]
[1764164002478,4.9430725,136.03,136.02,0.51]
[1764164003190,6.17884063,136.07,136.02,0.51]
[1764164003191,4.9430725,136.06,136.02,19.92794198]
[1764164003495,4.9430725,136.05,136.02,38.30759203]
[1764164003692,20.87602688,136.08,136.02,38.30759203]
[1764164003883,4.94538769,136.07,136.02,38.30759203]
[1764164004081,4.94538769,136.06,136.02,38.30759203]
[1764164004282,4.94538769,136.05,136.02,26.24151007]
[1764164004505,12.06608196,136.07,136.02,26.24151007]
[1764164004706,4.94503072,136.06,136.03,0.41]
[1764164004907,16.308864,136.09,136.03,12.7604051]
[1764164004908,18.24492259,136.09,136.03,12.7604051]
[1764164005082,4.94521188,136.08,136.04,12.06608196]
[1764164005401,4.94521188,136.07,136.05,7.35023888]
[1764164005626,4.94521188,136.06,136.04,7.3505545]
[1764164005798,4.94392296,136.05,136.04,7.3505545]
[1764164007293,4.94392296,136.05,136.03,7.35131956]
[1764164007493,29.03494596,136.08,136.03,7.76131956]
[1764164007800,5.60212896,136.07,136.03,7.76131956]
[1764164008008,4.94212896,136.06,136.03,7.35131956]
[1764164008208,4.94212896,136.05,136.03,7.35131956]
[1764164008507,12.72608196,136.07,136.03,7.35131956]
[1764164008808,4.9418216,136.06,136.03,7.35131956]
[1764164009000,4.9418216,136.05,136.03,7.35131956]
[1764164009201,12.72608196,136.07,136.03,7.35131956]
[1764164009404,4.94168406,136.06,136.03,7.35131956]
[1764164009588,4.94168406,136.05,136.03,7.35131956]
[1764164009793,0.66,136.07,136.03,7.35131956]
[1764164010002,4.93944041,136.06,136.03,7.35131956]
[1764164010203,4.93944041,136.05,136.03,7.35131956]
[1764164010385,29.03494596,136.07,136.03,7.35131956]
[1764164010585,17.66560249,136.06,136.03,7.35131956]
[1764164010785,4.93952053,136.05,136.03,7.35131956]
[1764164011015,29.03494596,136.07,136.03,7.76131956]
[1764164011198,4.94004664,136.06,136.03,7.76131956]
[1764164011399,4.94004664,136.05,136.03,7.76131956]
[1764164011598,16.968864,136.07,136.03,26.13961846]
[1764164011801,4.94024489,136.06,136.03,26.13961846]
[1764164011989,4.94024489,136.05,136.02,7.45182542]
[1764164012183,4.93972112,136.04,136.02,7.45182542]
[1764164012508,4.93972112,136.03,136.02,7.45182542]
[1764164012914,5.59972112,136.03,136.02,0.1]
[1764164014093,17.66580308,136.03,136.02,0.1]
[1764164014804,5.59972112,136.03,136.02,0.1]
[1764164015691,17.66580308,136.03,136.02,0.1]
[1764164016539,5.59972112,136.03,136.02,0.1]